fUSD/lending_fUSD_20260424
["ID","MTS","AMOUNT","RATE_DAILY","PERIOD"]
[421081657,1776994247585,-7093.82,0.00010574,2]
[421081658,1776994247594,-10000.0,0.00010593,2]
[421081659,1776994247603,-151.0,0.00010593,2]
[421081660,1776994247613,-227.937032,0.00010593,2]
[421081661,1776994247622,-227.937032,0.00010593,2]
[421081662,1776994247631,-227.937032,0.00010593,2]
[421081663,1776994247641,-227.937032,0.00010593,2]
[421081664,1776994247651,-4142.0,0.00010658,2]
[421081665,1776994247661,-29.01042083,0.0001069,2]
[421081741,1776994441822,252.3166991,0.000128,30]
[421081742,1776994934939,10000.0,0.000165,120]
[421081743,1776994951670,6382.0,0.000165,120]
[421081759,1776995432109,-330.5225775,7.396e-05,2]
[421081760,1776995432121,-169.4774225,7.396e-05,2]
[421081761,1776995432130,-250.0,7.446e-05,2]
[421081762,1776995432139,-96.89464395,7.477e-05,2]
[421081763,1776995432163,-153.10535605,7.477e-05,2]
[421081764,1776995432172,-1200.0,7.496e-05,2]
[421081765,1776995432180,-47602.52552399,7.497e-05,2]
[421081766,1776995432191,-150.0,7.505e-05,2]
[421081767,1776995432202,-500.0,7.506e-05,2]
[421081768,1776995432211,-332.12736126,7.506e-05,2]
[421081769,1776995432221,-500.0,7.506e-05,2]
[421081770,1776995432231,-500.0,7.506e-05,2]
[421081771,1776995432241,-500.0,7.506e-05,2]
[421081772,1776995432250,-500.0,7.506e-05,2]
[421081773,1776995432262,-500.0,7.506e-05,2]
[421081774,1776995432271,-500.0,7.506e-05,2]
[421081775,1776995432280,-500.0,7.506e-05,2]
[421081776,1776995432290,-500.0,7.506e-05,2]
[421081777,1776995432299,-500.0,7.506e-05,2]
[421081778,1776995432308,-500.0,7.506e-05,2]
[421081779,1776995432317,-500.0,7.506e-05,2]
[421081780,1776995432327,-500.0,7.506e-05,2]
[421081781,1776995432336,-537.44401432,7.506e-05,2]
[421081782,1776995432345,-500.0,7.506e-05,2]
[421081783,1776995432354,-500.0,7.506e-05,2]
[421081784,1776995432363,-500.0,7.506e-05,2]
[421081785,1776995432373,-500.0,7.506e-05,2]
[421081786,1776995432382,-500.75405741,7.506e-05,2]
[421081787,1776995432391,-500.0,7.506e-05,2]
[421081788,1776995432400,-262.28125848,7.506e-05,2]
[421081789,1776995432409,-435.94206148,7.506e-05,2]
[421081790,1776995432419,-500.0,7.506e-05,2]
[421081791,1776995432428,-10434.13846656,7.506e-05,2]
[421081792,1776995432437,-617.35,7.506e-05,2]
[421081793,1776995432447,-221946.75617136,7.507e-05,2]
[421081794,1776995432458,-63367.24099711,7.507e-05,2]
[421081795,1776995432470,-81642.28903487,7.507e-05,2]
[421081796,1776995432481,-1254.41808677,7.507e-05,2]
[421081797,1776995432503,-463.04172306,7.507e-05,2]
[421081798,1776995432520,-660.33134,7.507e-05,2]
[421081807,1776995438607,-19380.74054683,7.507e-05,2]
[421081808,1776995438616,-617.35,7.78e-05,2]
[421081809,1776995438628,-617.35,8.054e-05,2]
[421081810,1776995438638,-250.0,8.135e-05,2]
[421081811,1776995438648,-1680.0,8.245e-05,2]
[421081812,1776995438658,-255.0,8.255e-05,2]
[421081813,1776995438667,-617.35,8.328e-05,2]
[421081814,1776995438677,-52840.18873598,8.451e-05,2]
[421081815,1776995438689,-14860.68728384,8.451e-05,2]
[421081816,1776995438698,-226.18823378,8.513e-05,2]
[421081817,1776995438708,-200.0,8.534e-05,2]
[421081818,1776995438717,-617.35,8.602e-05,2]
[421081819,1776995438726,-578.20924308,8.689e-05,2]
[421081820,1776995438736,-211.07315225,8.689e-05,2]
[421081821,1776995438746,-201.88416089,8.689e-05,2]
[421081822,1776995438755,-9552.16786547,8.689e-05,2]
[421081823,1776995438764,-511.46207004,8.689e-05,2]
[421081824,1776995438773,-721.12765535,8.689e-05,2]
[421081825,1776995438783,-1428.38747117,8.689e-05,2]
[421081826,1776995438792,-747.95734618,8.689e-05,2]
[421081827,1776995438801,-151.0,8.689e-05,2]
[421081828,1776995438811,-174.61919141,8.689e-05,2]
[421081829,1776995438820,-283.56536387,8.689e-05,2]
[421081830,1776995438830,-235.75327194,8.689e-05,2]
[421081831,1776995438840,-244.476143,8.689e-05,2]
[421081833,1776995438849,-253.52176029,8.689e-05,2]
[421081835,1776995438859,-262.90206542,8.689e-05,2]
[421081836,1776995438869,-272.62944185,8.689e-05,2]
[421081837,1776995438878,-282.71673119,8.689e-05,2]
[421081838,1776995438888,-293.17725025,8.689e-05,2]
[421081840,1776995438897,-304.02480851,8.689e-05,2]
[421081841,1776995438906,-234.27363856,8.689e-05,2]
[421081842,1776995438915,-151.13346786,8.689e-05,2]
[421081843,1776995438925,-258.53476204,8.689e-05,2]
[421081844,1776995438934,-727.84822382,8.744e-05,2]
[421081845,1776995438944,-617.39624119,8.876e-05,2]
[421081846,1776995438953,-623.0,8.977e-05,2]
[421081847,1776995438966,-1048.0,8.977e-05,2]
[421081848,1776995438976,-1349.0,8.977e-05,2]
[421081849,1776995438985,-3531.0,8.977e-05,2]
[421081850,1776995438994,-1266.0,8.977e-05,2]
[421081851,1776995439004,-928.454,8.977e-05,2]
[421081852,1776995439013,-151.0,8.977e-05,2]
[421081853,1776995439022,-416.596,8.977e-05,2]
[421081854,1776995439031,-3781.0,8.977e-05,2]
[421081855,1776995439041,-1295.36748642,9e-05,2]
[421081856,1776995439054,-829.67010334,9e-05,2]
[421081857,1776995439169,-2612.22125603,9e-05,2]
[421081862,1776995440767,-261.59546314,9e-05,2]
[421081878,1776995444587,-1.9227103,8.977e-05,2]
[421081879,1776995444599,-315.10103756,8.977e-05,2]
[421081880,1776995444623,-5714.97625214,8.977e-05,2]
[421081881,1776995444633,-1869.50011771,9e-05,2]
[421081882,1776995444642,-433.0,9.081e-05,2]
[421081883,1776995444651,-350.11,9.191e-05,2]
[421081884,1776995444661,-1481.23780761,9.237e-05,2]
[421081885,1776995444670,-156.587,9.237e-05,2]
[421081886,1776995444680,-181.08010149,9.237e-05,2]
[421081887,1776995444690,-150.0,9.616e-05,2]
[421081888,1776995444699,-152.13216263,9.616e-05,2]
[421081889,1776995444708,-150.0,9.616e-05,2]
[421081890,1776995444718,-152.1696705,9.616e-05,2]
[421081891,1776995444727,-150.0,9.616e-05,2]
[421081892,1776995444738,-150.0,9.714e-05,2]
[421081893,1776995444748,-250.0,9.772e-05,2]
[421081894,1776995444758,-1536.04360649,9.785e-05,2]
[421081895,1776995444768,-162.380719,9.785e-05,2]
[421081896,1776995444779,-187.78006525,9.785e-05,2]
[421081897,1776995444789,-150.0,9.811e-05,2]
[421081898,1776995444799,-150.0,9.908e-05,2]
[421081899,1776995444808,-354.93294632,9.959e-05,2]
[421081900,1776995444817,-736.0,9.989e-05,2]
[421081901,1776995444826,-200.0,0.0001,2]
[421081902,1776995444835,-500.0,0.0001,2]
[421081903,1776995444845,-151.0,0.0001,2]
[421081904,1776995444854,-500.0,0.0001,2]
[421081905,1776995444864,-151.0,0.0001,2]
[421081906,1776995444873,-500.0,0.0001,2]
[421081907,1776995444883,-151.0,0.0001,2]
[421081908,1776995444893,-151.0,0.0001,2]
[421081909,1776995444902,-500.0,0.0001,2]
[421081910,1776995444912,-500.0,0.0001,2]
[421081911,1776995444921,-151.0,0.0001,2]
[421081912,1776995444931,-500.0,0.0001,2]
[421081913,1776995444941,-151.0,0.0001,2]
[421081914,1776995444950,-500.0,0.0001,2]
[421081915,1776995444959,-151.0,0.0001,2]
[421081916,1776995444968,-500.0,0.0001,2]
[421081917,1776995444978,-151.0,0.0001,2]
[421081918,1776995444987,-500.0,0.0001,2]
[421081919,1776995444997,-151.0,0.0001,2]
[421081920,1776995445007,-500.0,0.0001,2]
[421081921,1776995445016,-151.0,0.0001,2]
[421081922,1776995445026,-500.0,0.0001,2]
[421081923,1776995445036,-151.0,0.0001,2]
[421081924,1776995445045,-500.0,0.0001,2]
[421081925,1776995445054,-500.0,0.0001,2]
[421081926,1776995445064,-151.0,0.0001,2]
[421081927,1776995445073,-500.0,0.0001,2]
[421081928,1776995445082,-151.0,0.0001,2]
[421081929,1776995445091,-500.0,0.0001,2]
[421081930,1776995445100,-151.0,0.0001,2]
[421081931,1776995445110,-500.0,0.0001,2]
[421081932,1776995445120,-151.0,0.0001,2]
[421081933,1776995445129,-500.0,0.0001,2]
[421081934,1776995445139,-500.0,0.0001,2]
[421081935,1776995445148,-151.0,0.0001,2]
[421081936,1776995445157,-500.0,0.0001,2]
[421081937,1776995445167,-500.0,0.0001,2]
[421081938,1776995445177,-151.0,0.0001,2]
[421081939,1776995445189,-500.0,0.0001,2]
[421081940,1776995445199,-151.0,0.0001,2]
[421081941,1776995445209,-151.0,0.0001,2]
[421081942,1776995445219,-500.0,0.0001,2]
[421081943,1776995445229,-151.0,0.0001,2]
[421081944,1776995445239,-151.0,0.0001,2]
[421081945,1776995445248,-151.0,0.0001,2]
[421081946,1776995445258,-151.0,0.0001,2]
[421081947,1776995445267,-151.0,0.0001,2]
[421081948,1776995445277,-151.0,0.0001,2]
[421081949,1776995445287,-151.0,0.0001,2]
[421081950,1776995445296,-151.0,0.0001,2]
[421081951,1776995445307,-151.0,0.0001,2]
[421081952,1776995445318,-151.0,0.0001,2]
[421081953,1776995445327,-151.0,0.0001,2]
[421081954,1776995445337,-151.0,0.0001,2]
[421081955,1776995445346,-1386.78395259,0.0001,2]
[421081956,1776995445356,-361.52934284,0.0001,2]
[421081957,1776995445366,-361.52934284,0.0001,2]
[421081958,1776995445375,-361.52934284,0.0001,2]
[421081959,1776995445384,-150.0,0.00010005,2]
[421081960,1776995445397,-150.0,0.00010102,2]
[421081961,1776995445406,-150.0,0.00010151,2]
[421081962,1776995445416,-150.0,0.00010199,2]
[421081963,1776995445426,-392.62,0.00010199,2]
[421081964,1776995445436,-1000.0,0.000102,4]
[421081965,1776995445445,-392.67,0.00010214,2]
[421081966,1776995445456,-570.35,0.00010259,2]
[421081967,1776995445466,-150.0,0.00010296,2]
[421081968,1776995445476,-313.0,0.000103,2]
[421081969,1776995445486,-307.0,0.000103,2]
[421081970,1776995445496,-1000.0,0.000103,2]
[421081971,1776995445505,-1592.87721993,0.00010333,2]
[421081972,1776995445515,-168.3888056,0.00010333,2]
[421081973,1776995445526,-194.72792766,0.00010333,2]
[421081974,1776995445535,-150.0,0.00010394,2]
[421081975,1776995445545,-425.0902099,0.00010402,2]
[421081976,1776995445554,-1215.5481486,0.00010402,2]
[421081977,1776995445564,-25155.4999063,0.00010402,2]
[421081978,1776995445574,-1550.5152334,0.00010402,2]
[421081979,1776995445584,-1119.24607584,0.00010476,2]
[421081980,1776995445595,-1007.58265548,0.00010476,2]
[421081981,1776995445605,-1145.04677574,0.00010476,2]
[421081982,1776995445616,-1128.07295192,0.00010476,2]
[421081983,1776995445626,-1287.84974038,0.00010476,2]
[421081984,1776995445636,-150.0,0.00010491,2]
[421081985,1776995445646,-1000.0,0.000105,2]
[421081986,1776995445656,-1000.0,0.000105,3]
[421081987,1776995445666,-1119.62,0.000105,5]
[421081988,1776995445677,-200.0,0.00010548,2]
[421081989,1776995445687,-1226.37476936,0.00010548,2]
[421081990,1776995445700,-120.5125076,0.00010548,2]
[421081991,1776995445710,-896.42278526,0.00010574,2]
[421081992,1776995445719,-2000.0,0.0001058,2]
[421081993,1776995445729,-2000.0,0.0001058,2]
[421081994,1776995445739,-150.0,0.00010588,2]
[421081995,1776995445748,-982.68344737,0.000106,2]
[421081996,1776995445758,-2855.2046,0.000106,2]
[421081997,1776995445768,-2000.0,0.000106,2]
[421081998,1776995445778,-520.65415708,0.000106,2]
[421081999,1776995445791,-802.02621101,0.000106,2]
[421082002,1776995447095,-603.66067317,0.000106,2]
[421082003,1776995447104,-3345.40052705,0.000106,2]
[421082005,1776995447175,-795.41446716,0.000106,2]
[421082006,1776995447184,-5000.0,0.000106,2]
[421082007,1776995447193,-250.0,0.00010614,2]
[421082008,1776995447203,-129.05212173,0.00010614,2]
[421082009,1776995447215,-131.75787827,0.00010614,2]
[421082010,1776995447224,-649.73212173,0.0001063,2]
[421082011,1776995447236,-1350.26787827,0.0001063,2]
[421082012,1776995447246,-215.99,0.00010647,2]
[421082013,1776995447256,-1000.0,0.00010658,2]
[421082014,1776995447265,-500.0,0.00010673,2]
[421082015,1776995447276,-500.0,0.00010673,2]
[421082016,1776995447286,-500.0,0.00010673,2]
[421082017,1776995447296,-167.0,0.0001068,2]
[421082018,1776995447306,-161.0,0.0001068,2]
[421082019,1776995447316,-161.0,0.0001068,2]
[421082020,1776995447326,-152.9753269,0.00010685,2]
[421082021,1776995447336,-152.77100983,0.00010685,2]
[421082022,1776995447347,-169.67877727,0.00010685,2]
[421082023,1776995447358,-1008.79195064,0.0001069,2]
[421082024,1776995447368,-433.95413953,0.0001069,2]
[421082025,1776995447378,-500.0,0.0001069,2]
[421082026,1776995447389,-1568.96091756,0.0001069,2]
[421082027,1776995447533,-431.03908244,0.0001069,2]
[421082028,1776995447543,-2000.0,0.0001069,2]
[421082029,1776995447553,-1122.75977438,0.0001069,2]
[421082030,1776995447562,-151.0,0.00010697,2]
[421082031,1776995447572,-151.0,0.00010697,2]
[421082032,1776995447582,-151.0,0.00010697,2]
[421082033,1776995447591,-500.0,0.00010699,2]
[421082034,1776995447601,-285.91167131,0.00010699,2]
[421082035,1776995447611,-154.74182893,0.00010699,2]
[421082036,1776995447621,-324.0,0.000107,5]
[421082037,1776995447631,-262.0,0.000107,5]
[421082038,1776995447640,-250.0,0.000107,2]
[421082039,1776995447650,-22315.77537635,0.000107,2]
[421082040,1776995447662,-1064.25396414,0.000107,2]
[421082041,1776995580942,7172.1,0.000165,120]
[421082042,1776995691554,150.0,0.00010189,30]
[421082043,1776996324736,1240.03,8e-05,10]
[421082055,1776996633744,-1200.0,7.248e-05,2]
[421082056,1776996633754,-300.0,7.248e-05,2]
[421082057,1776996633764,-250.0,7.249e-05,2]
[421082058,1776996633773,-3847.298,7.249e-05,2]
[421082059,1776996633782,-304.051,7.249e-05,2]
[421082060,1776996633791,-246.0,7.249e-05,2]
[421082061,1776996633801,-500.0,7.295e-05,2]
[421082062,1776996633810,-191.57549213,7.295e-05,2]
[421082063,1776996633819,-272.6223543,7.295e-05,2]
[421082064,1776996633829,-500.0,7.295e-05,2]
[421082065,1776996633838,-500.0,7.295e-05,2]
[421082066,1776996633848,-467.8435,7.296e-05,2]
[421082067,1776996633857,-66542.90821382,7.296e-05,2]
[421082068,1776996633875,-6945.14459819,7.296e-05,2]
[421082069,1776996633902,-1288.30785659,7.296e-05,2]
[421082070,1776996633914,-316.11449079,7.296e-05,2]
[421082071,1776996633925,-1075.43,7.296e-05,2]
[421082072,1776996633936,-467.29685263,7.296e-05,2]
[421082073,1776996633959,-278.52586619,7.296e-05,2]
[421082078,1776996638355,163.0,0.000165,120]
[421082080,1776996639121,-500.0,7.295e-05,2]
[421082081,1776996639131,-500.0,7.295e-05,2]
[421082082,1776996639141,-500.0,7.295e-05,2]
[421082083,1776996639151,-500.0,7.295e-05,2]
[421082084,1776996639160,-500.55110935,7.295e-05,2]
[421082085,1776996639170,-500.0,7.295e-05,2]
[421082086,1776996639179,-500.0,7.295e-05,2]
[421082087,1776996639188,-500.0,7.295e-05,2]
[421082088,1776996639197,-500.0,7.295e-05,2]
[421082089,1776996639206,-458.28370954,7.295e-05,2]
[421082090,1776996639215,-152.44699342,7.295e-05,2]
[421082091,1776996639225,-326.52378393,7.295e-05,2]
[421082092,1776996639234,-500.0,7.295e-05,2]
[421082093,1776996639243,-500.0,7.295e-05,2]
[421082094,1776996639252,-219.0280313,7.295e-05,2]
[421082095,1776996639261,-500.0,7.295e-05,2]
[421082096,1776996639271,-500.0,7.295e-05,2]
[421082097,1776996639280,-500.0,7.295e-05,2]
[421082098,1776996639289,-500.0,7.295e-05,2]
[421082099,1776996639299,-500.0,7.295e-05,2]
[421082100,1776996639308,-500.0,7.295e-05,2]
[421082101,1776996639316,-500.0,7.295e-05,2]
[421082102,1776996639325,-500.0,7.295e-05,2]
[421082103,1776996639334,-500.0,7.295e-05,2]
[421082104,1776996639343,-500.0,7.295e-05,2]
[421082105,1776996639352,-500.0,7.295e-05,2]
[421082106,1776996639361,-500.0,7.295e-05,2]
[421082107,1776996639372,-156.68423047,7.295e-05,2]
[421082108,1776996639385,-343.31576953,7.295e-05,2]
[421082109,1776996639395,-500.0,7.295e-05,2]
[421082110,1776996639403,-500.0,7.295e-05,2]
[421082111,1776996639412,-500.0,7.295e-05,2]
[421082112,1776996639422,-500.0,7.295e-05,2]
[421082113,1776996639431,-500.0,7.295e-05,2]
[421082114,1776996639440,-500.0,7.295e-05,2]
[421082115,1776996639448,-500.0,7.295e-05,2]
[421082116,1776996639458,-500.0,7.295e-05,2]
[421082117,1776996639467,-500.0,7.295e-05,2]
[421082118,1776996639476,-500.0,7.295e-05,2]
[421082119,1776996639485,-500.0,7.295e-05,2]
[421082120,1776996639494,-500.0,7.295e-05,2]
[421082121,1776996639503,-500.0,7.295e-05,2]
[421082122,1776996639513,-14789.64598083,7.296e-05,2]
[421082123,1776996639665,-3429.69146858,7.296e-05,2]
[421082124,1776996639687,-333.19132186,7.296e-05,2]
[421082125,1776996639715,-34132.79704583,7.296e-05,2]
[421082126,1776996639728,-829.67010334,7.296e-05,2]
[421082127,1776996639740,-18386.795535,7.296e-05,2]
[421082207,1776996640618,-5060.0,7.296e-05,2]
[421082210,1776996640635,-6102.3454475,7.296e-05,2]
[421082254,1776996641039,-6688.85115786,7.296e-05,2]
[421082426,1776996642740,-2078.75970756,7.296e-05,2]
[421082449,1776996642952,-15709.8,7.296e-05,2]
[421082452,1776996642964,-619.0,7.296e-05,2]
[421082489,1776996645530,-3016.57165071,7.296e-05,2]
[421082490,1776996645592,-3293.64937182,7.296e-05,2]
[421082491,1776996645638,-807.32731775,7.296e-05,2]
[421082492,1776996646012,-11767.21559166,7.296e-05,2]
[421082493,1776996646024,-11675.5,7.296e-05,2]
[421082494,1776996646035,-10948.35580408,7.296e-05,2]
[421082495,1776996646047,-7628.96229128,7.296e-05,2]
[421082496,1776996646058,-2670.04518939,7.296e-05,2]
[421082497,1776996646070,-462.09353965,7.296e-05,2]
[421082498,1776996646082,-840.14879226,7.296e-05,2]
[421082502,1776996646521,-58891.05037478,7.296e-05,2]
[421082503,1776996646564,-7382.43360165,7.296e-05,2]
[421082504,1776996646575,-2799.59749697,7.296e-05,2]
[421082505,1776996646586,-9559.21788676,7.296e-05,2]
[421082507,1776997346205,2058.5965749,0.000128,30]
[421082508,1776997346234,941.4034251,0.000128,30]
[421082509,1776997355986,2358.5965749,0.000128,30]
[421082510,1776997356019,1009.4834251,0.000128,30]
[421082523,1776997787661,152.0,7.614e-05,7]
[421082524,1776997788379,152.0,7.688e-05,7]
[421082525,1776997789752,152.0,7.695e-05,7]
[421082526,1776997789969,152.0,7.695e-05,7]
[421082529,1776997831689,-1200.0,7.193e-05,2]
[421082530,1776997831698,-245.0,7.193e-05,2]
[421082531,1776997831708,-300.0,7.194e-05,2]
[421082532,1776997831717,-300.0,7.194e-05,2]
[421082533,1776997831726,-1200.0,7.194e-05,2]
[421082534,1776997831735,-300.0,7.194e-05,2]
[421082535,1776997831744,-300.0,7.194e-05,2]
[421082536,1776997831754,-150.0,7.194e-05,2]
[421082537,1776997831763,-422278.1171,7.195e-05,2]
[421082538,1776997831773,-151.0,7.293e-05,2]
[421082539,1776997831782,-686.83,7.295e-05,2]
[421082540,1776997831791,-500.0,7.296e-05,2]
[421082541,1776997831800,-686.83,7.569e-05,2]
[421082542,1776997831809,-150.0,7.718e-05,2]
[421082543,1776997831819,-150.0,7.718e-05,2]
[421082544,1776997831828,-150.06744683,7.718e-05,2]
[421082545,1776997831837,-150.0,7.718e-05,2]
[421082546,1776997831847,-150.0,7.718e-05,2]
[421082547,1776997831856,-150.94681551,7.718e-05,2]
[421082548,1776997831865,-150.0,7.718e-05,2]
[421082549,1776997831875,-150.0,7.718e-05,2]
[421082550,1776997831885,-150.25362653,7.718e-05,2]
[421082551,1776997831894,-150.0,7.718e-05,2]
[421082552,1776997831903,-201.53869495,7.718e-05,2]
[421082553,1776997831913,-150.0,7.718e-05,2]
[421082554,1776997831922,-150.28497171,7.718e-05,2]
[421082555,1776997831931,-150.0,7.718e-05,2]
[421082556,1776997831941,-150.0,7.737e-05,2]
[421082557,1776997831950,-222.10980938,7.743e-05,2]
[421082558,1776997831959,-204.41702647,7.751e-05,2]
[421082559,1776997831970,-150.0,7.757e-05,2]
[421082560,1776997831981,-150.0,7.776e-05,2]
[421082561,1776997831990,-150.0,7.796e-05,2]
[421082562,1776997831999,-150.0,7.815e-05,2]
[421082563,1776997832009,-226.18823378,7.832e-05,2]
[421082564,1776997832021,-150.0,7.835e-05,2]
[421082565,1776997832031,-150.0,7.84e-05,2]
[421082566,1776997832040,-686.83,7.843e-05,2]
[421082567,1776997832049,-150.0,7.854e-05,2]
[421082568,1776997832059,-150.0,7.874e-05,2]
[421082569,1776997832068,-394.59392826,7.888e-05,2]
[421082570,1776997832078,-150.0,7.889e-05,2]
[421082571,1776997832088,-150.0,7.889e-05,2]
[421082572,1776997832098,-150.0,7.889e-05,2]
[421082573,1776997832108,-150.0,7.893e-05,2]
[421082574,1776997832118,-250.0,7.912e-05,2]
[421082575,1776997832127,-150.0,7.913e-05,2]
[421082576,1776997832136,-420.0,7.913e-05,2]
[421082577,1776997832146,-1680.0,7.913e-05,2]
[421082578,1776997832156,-255.0,7.913e-05,2]
[421082579,1776997832165,-250.0,7.913e-05,2]
[421082580,1776997832175,-150.0,7.932e-05,2]
[421082581,1776997832185,-150.0,7.932e-05,2]
[421082582,1776997832195,-280.09,7.944e-05,2]
[421082583,1776997832204,-150.0,7.952e-05,2]
[421082584,1776997832214,-150.0,7.963e-05,2]
[421082585,1776997832223,-150.0,7.971e-05,2]
[421082586,1776997832232,-150.0,7.991e-05,2]
[421082587,1776997832242,-150.0,8.004e-05,2]
[421082588,1776997832252,-150.0,8.004e-05,2]
[421082589,1776997832262,-150.0,8.01e-05,2]
[421082590,1776997832271,-388.03812921,8.02e-05,2]
[421082591,1776997832282,-150.0,8.03e-05,2]
[421082592,1776997832292,-150.0,8.049e-05,2]
[421082593,1776997832301,-150.0,8.061e-05,2]
[421082594,1776997832310,-150.0,8.061e-05,2]
[421082595,1776997832319,-150.0,8.061e-05,2]
[421082596,1776997832329,-150.0,8.069e-05,2]
[421082597,1776997832338,-150.0,8.085e-05,2]
[421082598,1776997832347,-150.0,8.088e-05,2]
[421082599,1776997832356,-150.0,8.108e-05,2]
[421082600,1776997832365,-686.83,8.117e-05,2]
[421082601,1776997832375,-150.0,8.127e-05,2]
[421082602,1776997832384,-150.0,8.147e-05,2]
[421082603,1776997832393,-150.0,8.147e-05,2]
[421082604,1776997832402,-150.0,8.147e-05,2]
[421082605,1776997832411,-150.0,8.166e-05,2]
[421082606,1776997832421,-150.0,8.186e-05,2]
[421082607,1776997832430,-150.0,8.205e-05,2]
[421082608,1776997832440,-150.0,8.208e-05,2]
[421082609,1776997832449,-500.0,8.219e-05,2]
[421082610,1776997832459,-150.0,8.225e-05,2]
[421082611,1776997832468,-150.0,8.232e-05,2]
[421082612,1776997832479,-150.0,8.232e-05,2]
[421082613,1776997832488,-150.0,8.232e-05,2]
[421082614,1776997832498,-150.0,8.244e-05,2]
[421082615,1776997832507,-150.0,8.264e-05,2]
[421082616,1776997832516,-150.0,8.283e-05,2]
[421082617,1776997832526,-150.0,8.289e-05,2]
[421082618,1776997832535,-150.0,8.289e-05,2]
[421082619,1776997832545,-150.0,8.302e-05,2]
[421082620,1776997832554,-150.0,8.322e-05,2]
[421082622,1776997832563,-150.0,8.33e-05,2]
[421082624,1776997832572,-150.0,8.341e-05,2]
[421082626,1776997832581,-150.0,8.361e-05,2]
[421082628,1776997832590,-150.0,8.361e-05,2]
[421082630,1776997832600,-150.0,8.38e-05,2]
[421082631,1776997832609,-686.83,8.391e-05,2]
[421082632,1776997832618,-150.0,8.4e-05,2]
[421082633,1776997832627,-150.0,8.404e-05,2]
[421082634,1776997832636,-150.0,8.404e-05,2]
[421082635,1776997832645,-150.0,8.404e-05,2]
[421082636,1776997832655,-150.0,8.419e-05,2]
[421082637,1776997832664,-150.0,8.439e-05,2]
[421082638,1776997832673,-150.0,8.453e-05,2]
[421082639,1776997832682,-150.0,8.458e-05,2]
[421082640,1776997832691,-150.0,8.478e-05,2]
[421082641,1776997832700,-502.31763157,8.493e-05,2]
[421082642,1776997832710,-150.0,8.497e-05,2]
[421082643,1776997832719,-150.0,8.517e-05,2]
[421082644,1776997832728,-160.0,8.526e-05,2]
[421082645,1776997832737,-564.873027,8.526e-05,2]
[421082646,1776997832747,-969.746055,8.526e-05,2]
[421082647,1776997832756,-160.0,8.526e-05,2]
[421082648,1776997832766,-1907.482623,8.526e-05,2]
[421082649,1776997832775,-3654.965246,8.526e-05,2]
[421082650,1776997832787,-160.0,8.526e-05,2]
[421082651,1776997832797,-750.959281,8.526e-05,2]
[421082652,1776997832806,-1341.918562,8.526e-05,2]
[421082653,1776997832816,-160.0,8.526e-05,2]
[421082654,1776997832826,-772.072483,8.526e-05,2]
[421082655,1776997832836,-1384.144966,8.526e-05,2]
[421082656,1776997832846,-160.0,8.526e-05,2]
[421082657,1776997832856,-814.92709,8.526e-05,2]
[421082658,1776997832865,-1469.85418,8.526e-05,2]
[421082659,1776997832874,-160.0,8.526e-05,2]
[421082660,1776997832883,-1657.487518,8.526e-05,2]
[421082661,1776997832892,-3154.975036,8.526e-05,2]
[421082662,1776997832902,-200.0,8.534e-05,2]
[421082663,1776997832911,-150.0,8.536e-05,2]
[421082664,1776997832921,-150.0,8.556e-05,2]
[421082665,1776997832931,-151.0,8.558e-05,2]
[421082666,1776997832942,-151.56653646,8.575e-05,2]
[421082667,1776997832951,-150.00000001,8.575e-05,2]
[421082668,1776997832961,-150.8431173,8.575e-05,2]
[421082669,1776997832971,-150.53124198,8.575e-05,2]
[421082670,1776997832980,-150.0,8.575e-05,2]
[421082671,1776997832990,-151.83856087,8.575e-05,2]
[421082672,1776997833000,-296.23896342,8.575e-05,2]
[421082673,1776997833011,-150.0,8.575e-05,2]